[Event "Live Chess"]
[Site "Chess.com"]
[Date "2023.05.20"]
[Round "-"]
[White "AbilifyXL"]
[Black "Ed_Knox"]
[Result "1-0"]
[WhiteElo "1951"]
[BlackElo "1505"]
[TimeControl "300"]
[EndTime "13:53:23 PDT"]
[Termination "AbilifyXL won by checkmate"]

1. d4 {[%clk 0:04:58.8]} 1... g6 {[%clk 0:04:57.1]} 2. c4 {[%clk 0:04:58.7]}
2... Bg7 {[%clk 0:04:56.1]} 3. Nc3 {[%clk 0:04:58.3]} 3... d6 {[%clk 0:04:55.8]}
4. e4 {[%clk 0:04:57.3]} 4... e5 {[%clk 0:04:54.2]} 5. Nf3 {[%clk 0:04:53.4]}
5... Nd7 {[%clk 0:04:50.8]} 6. Be2 {[%clk 0:04:51.2]} 6... exd4 {[%clk
0:04:36.7]} 7. Nxd4 {[%clk 0:04:50]} 7... Nc5 {[%clk 0:04:32.3]} 8. O-O {[%clk
0:04:48.3]} 8... b6 {[%clk 0:04:27.9]} 9. Bf3 {[%clk 0:04:46.7]} 9... Bb7 {[%clk
0:04:26.6]} 10. Re1 {[%clk 0:04:45.9]} 10... Ne7 {[%clk 0:04:19.3]} 11. Bg5
{[%clk 0:04:43.7]} 11... O-O {[%clk 0:04:16.1]} 12. Nd5 {[%clk 0:04:39]} 12...
Bxd5 {[%clk 0:04:08.8]} 13. exd5 {[%clk 0:04:37]} 13... Re8 {[%clk 0:04:07.6]}
14. b4 {[%clk 0:04:32]} 14... Nd7 {[%clk 0:03:42.2]} 15. Nc6 {[%clk 0:04:29.6]}
15... Bxa1 {[%clk 0:02:53.9]} 16. Nxd8 {[%clk 0:04:27.5]} 16... f6 {[%clk
0:02:34.8]} 17. Qxa1 {[%clk 0:04:25.4]} 17... fxg5 {[%clk 0:02:22]} 18. Ne6
{[%clk 0:04:23.9]} 18... Nf5 {[%clk 0:02:17.5]} 19. g4 {[%clk 0:04:19.2]} 19...
Rxe6 {[%clk 0:01:49.9]} 20. dxe6 {[%clk 0:04:17.1]} 20... Ne5 {[%clk 0:01:45.9]}
21. gxf5 {[%clk 0:04:14.9]} 21... Nxf3+ {[%clk 0:01:43.4]} 22. Kg2 {[%clk
0:04:14.2]} 22... Nxe1+ {[%clk 0:01:41.8]} 23. Qxe1 {[%clk 0:04:14.1]} 23...
gxf5 {[%clk 0:01:40.3]} 24. Qe3 {[%clk 0:04:04.7]} 24... h6 {[%clk 0:01:35.7]}
25. h4 {[%clk 0:04:03.6]} 25... Re8 {[%clk 0:01:26.1]} 26. hxg5 {[%clk
0:04:02.2]} 26... hxg5 {[%clk 0:01:10.9]} 27. Qxg5+ {[%clk 0:04:01]} 27... Kf8
{[%clk 0:01:09.3]} 28. Qxf5+ {[%clk 0:04:00.2]} 28... Ke7 {[%clk 0:01:08.3]} 29.
Qf7+ {[%clk 0:03:59.2]} 29... Kd8 {[%clk 0:01:07.7]} 30. Qd7# {[%clk 0:03:58.5]}
1-0

[Event "Live Chess"]
[Site "Chess.com"]
[Date "2023.05.20"]
[Round "-"]
[White "HoarseyHorsey"]
[Black "OSmith06"]
[Result "1-0"]
[WhiteElo "1416"]
[BlackElo "1649"]
[TimeControl "300"]
[EndTime "13:53:25 PDT"]
[Termination "HoarseyHorsey won by resignation"]

1. d4 {[%clk 0:04:58.2]} 1... Nf6 {[%clk 0:04:56.7]} 2. c4 {[%clk 0:04:57.4]}
2... e6 {[%clk 0:04:56.2]} 3. Nc3 {[%clk 0:04:56]} 3... Bb4 {[%clk 0:04:55.7]}
4. e3 {[%clk 0:04:53.9]} 4... d5 {[%clk 0:04:54.9]} 5. Nf3 {[%clk 0:04:49.3]}
5... O-O {[%clk 0:04:53.4]} 6. Bd2 {[%clk 0:04:44.9]} 6... c5 {[%clk 0:04:52.6]}
7. cxd5 {[%clk 0:04:41.7]} 7... exd5 {[%clk 0:04:48.9]} 8. dxc5 {[%clk
0:04:39.2]} 8... Bxc5 {[%clk 0:04:45.9]} 9. Be2 {[%clk 0:04:33.3]} 9... Nc6
{[%clk 0:04:39.3]} 10. O-O {[%clk 0:04:31.1]} 10... Be6 {[%clk 0:04:34.7]} 11.
a3 {[%clk 0:04:27.3]} 11... Rc8 {[%clk 0:04:33.7]} 12. b4 {[%clk 0:04:25.9]}
12... Be7 {[%clk 0:04:29.8]} 13. Rc1 {[%clk 0:04:20.1]} 13... a5 {[%clk
0:04:24]} 14. b5 {[%clk 0:04:13.8]} 14... Bxa3 {[%clk 0:04:07.8]} 15. Ra1 {[%clk
0:04:09]} 15... Bb2 {[%clk 0:04:00.4]} 16. Ra2 {[%clk 0:04:06.1]} 16... Bxc3
{[%clk 0:03:59.1]} 17. Bxc3 {[%clk 0:04:05.4]} 17... Ne7 {[%clk 0:03:51.9]} 18.
Bxf6 {[%clk 0:04:02.8]} 18... gxf6 {[%clk 0:03:50.4]} 19. Nd4 {[%clk 0:03:58.5]}
19... b6 {[%clk 0:03:47]} 20. Rc2 {[%clk 0:03:54.7]} 20... Rxc2 {[%clk
0:03:44.7]} 21. Qxc2 {[%clk 0:03:53]} 21... Qc8 {[%clk 0:03:41.6]} 22. Nc6
{[%clk 0:03:37.7]} 22... Nxc6 {[%clk 0:03:39.1]} 23. bxc6 {[%clk 0:03:36.6]}
23... Qc7 {[%clk 0:03:32]} 24. Bb5 {[%clk 0:03:34.8]} 24... Rc8 {[%clk
0:03:28.4]} 25. Rc1 {[%clk 0:03:31.8]} 25... f5 {[%clk 0:03:24.2]} 26. Qa4
{[%clk 0:03:20.1]} 26... f6 {[%clk 0:03:20.7]} 27. Qh4 {[%clk 0:03:17.5]} 27...
Kg7 {[%clk 0:03:04.3]} 28. Ra1 {[%clk 0:02:42.6]} 28... Qe5 {[%clk 0:02:39.6]}
29. Ra4 {[%clk 0:02:36.4]} 29... Qb2 {[%clk 0:02:21.4]} 30. Qg3+ {[%clk
0:02:23.1]} 30... Kf7 {[%clk 0:02:18.7]} 31. Bf1 {[%clk 0:02:14.7]} 31... Rxc6
{[%clk 0:02:08.4]} 32. Rh4 {[%clk 0:02:07.5]} 32... Ke7 {[%clk 0:01:41.7]} 33.
Rxh7+ {[%clk 0:02:05.2]} 33... Kd8 {[%clk 0:01:27.4]} 34. Qb8+ {[%clk
0:01:51.6]} 34... Bc8 {[%clk 0:01:16.2]} 35. h4 {[%clk 0:01:12.9]} 35... Qe5
{[%clk 0:01:08.3]} 36. Qa7 {[%clk 0:00:57.4]} 36... Qd6 {[%clk 0:00:47.8]} 37.
Rh8+ {[%clk 0:00:53.1]} 1-0

[Event "Live Chess"]
[Site "Chess.com"]
[Date "2023.05.20"]
[Round "-"]
[White "AttackingSnowLeopard"]
[Black "flyingpuffins"]
[Result "1-0"]
[WhiteElo "2064"]
[BlackElo "1940"]
[TimeControl "300"]
[EndTime "13:53:57 PDT"]
[Termination "AttackingSnowLeopard won on time"]

1. d4 {[%clk 0:04:58.4]} 1... Nf6 {[%clk 0:04:52.1]} 2. Nf3 {[%clk 0:04:57.5]}
2... c6 {[%clk 0:04:49.5]} 3. Bf4 {[%clk 0:04:56]} 3... g6 {[%clk 0:04:42.8]} 4.
e3 {[%clk 0:04:54.7]} 4... Bg7 {[%clk 0:04:42.3]} 5. c4 {[%clk 0:04:53.5]} 5...
O-O {[%clk 0:04:41.4]} 6. Be2 {[%clk 0:04:52.2]} 6... d5 {[%clk 0:04:40.6]} 7.
O-O {[%clk 0:04:50.9]} 7... a6 {[%clk 0:04:38.6]} 8. c5 {[%clk 0:04:49.1]} 8...
Nbd7 {[%clk 0:04:36.9]} 9. Nc3 {[%clk 0:04:47.4]} 9... Re8 {[%clk 0:04:36]} 10.
Ne5 {[%clk 0:04:45.9]} 10... Nxe5 {[%clk 0:04:34.4]} 11. Bxe5 {[%clk 0:04:45]}
11... Nd7 {[%clk 0:04:34.3]} 12. Bxg7 {[%clk 0:04:43.9]} 12... Kxg7 {[%clk
0:04:34.2]} 13. f4 {[%clk 0:04:43.1]} 13... b6 {[%clk 0:04:33.3]} 14. b4 {[%clk
0:04:40.8]} 14... bxc5 {[%clk 0:04:32.8]} 15. bxc5 {[%clk 0:04:39.7]} 15... Nf6
{[%clk 0:04:31.5]} 16. Bd3 {[%clk 0:04:37]} 16... a5 {[%clk 0:04:27.8]} 17. Rb1
{[%clk 0:04:34.3]} 17... Ba6 {[%clk 0:04:26.4]} 18. Rb6 {[%clk 0:04:32.9]} 18...
Bxd3 {[%clk 0:04:24.8]} 19. Qxd3 {[%clk 0:04:32.8]} 19... Qc8 {[%clk 0:04:17.4]}
20. h3 {[%clk 0:04:30.4]} 20... Nd7 {[%clk 0:04:16.5]} 21. Rb2 {[%clk
0:04:26.7]} 21... Rb8 {[%clk 0:04:13.7]} 22. Rxb8 {[%clk 0:04:24.7]} 22... Qxb8
{[%clk 0:04:13.5]} 23. Rb1 {[%clk 0:04:23.3]} 23... Qc7 {[%clk 0:04:06.5]} 24.
e4 {[%clk 0:04:16.3]} 24... Rb8 {[%clk 0:03:59.1]} 25. Rxb8 {[%clk 0:04:13.5]}
25... Qxb8 {[%clk 0:03:58.3]} 26. exd5 {[%clk 0:04:12.9]} 26... cxd5 {[%clk
0:03:56]} 27. Nxd5 {[%clk 0:04:11.5]} 27... e6 {[%clk 0:03:47.4]} 28. c6 {[%clk
0:04:05.9]} 28... Nf8 {[%clk 0:03:17.3]} 29. Nc3 {[%clk 0:04:01.7]} 29... Qxf4
{[%clk 0:03:12.7]} 30. d5 {[%clk 0:03:29.7]} 30... exd5 {[%clk 0:02:53.9]} 31.
Ne2 {[%clk 0:03:16.4]} 31... Qd6 {[%clk 0:02:40.3]} 32. Nd4 {[%clk 0:03:04.4]}
32... Qc5 {[%clk 0:02:26.1]} 33. Kh2 {[%clk 0:02:52]} 33... Qd6+ {[%clk
0:02:05.1]} 34. Kh1 {[%clk 0:02:47.8]} 34... Qc5 {[%clk 0:01:42.4]} 35. Qe3
{[%clk 0:02:30.6]} 35... Kg8 {[%clk 0:01:25.4]} 36. Qe5 {[%clk 0:02:25.8]} 36...
h5 {[%clk 0:01:08.6]} 37. c7 {[%clk 0:02:18.5]} 37... Kh7 {[%clk 0:00:54.8]} 38.
Nf5 {[%clk 0:01:26]} 38... Ne6 {[%clk 0:00:21.9]} 39. Ne7 {[%clk 0:01:14.2]}
39... Qxc7 {[%clk 0:00:14.3]} 40. Qf6 {[%clk 0:00:57.6]} 40... Qc1+ {[%clk
0:00:09.4]} 41. Kh2 {[%clk 0:00:54.6]} 41... Qf4+ {[%clk 0:00:09.1]} 42. Qxf4
{[%clk 0:00:52.2]} 42... Nxf4 {[%clk 0:00:09]} 43. Nc6 {[%clk 0:00:50.9]} 43...
Nd3 {[%clk 0:00:08.2]} 44. Nxa5 {[%clk 0:00:47.1]} 44... Nb4 {[%clk 0:00:07.8]}
45. a3 {[%clk 0:00:44.9]} 45... Nc2 {[%clk 0:00:07.5]} 46. a4 {[%clk 0:00:44.1]}
46... d4 {[%clk 0:00:07.1]} 47. Nc4 {[%clk 0:00:42.1]} 47... d3 {[%clk
0:00:05.5]} 48. a5 {[%clk 0:00:40.8]} 48... Nb4 {[%clk 0:00:04.9]} 49. Kg3
{[%clk 0:00:36.8]} 49... Kg7 {[%clk 0:00:04.8]} 50. Kf3 {[%clk 0:00:34.7]} 50...
Kf8 {[%clk 0:00:04.7]} 51. Ke3 {[%clk 0:00:32.8]} 51... Ke7 {[%clk 0:00:04.5]}
52. Kd2 {[%clk 0:00:27.7]} 52... Kd7 {[%clk 0:00:04.4]} 53. Kc3 {[%clk
0:00:26.7]} 53... Kc7 {[%clk 0:00:04]} 54. Kxb4 {[%clk 0:00:25.2]} 54... Kb7
{[%clk 0:00:03.9]} 55. Kc3 {[%clk 0:00:22.2]} 55... Ka6 {[%clk 0:00:03.8]} 56.
Kxd3 {[%clk 0:00:21.5]} 56... Kb5 {[%clk 0:00:03.2]} 57. Kc3 {[%clk 0:00:20.7]}
57... f5 {[%clk 0:00:02.8]} 58. h4 {[%clk 0:00:19.2]} 58... g5 {[%clk
0:00:02.4]} 59. Nd6+ {[%clk 0:00:18.2]} 59... Kxa5 {[%clk 0:00:01.2]} 60. hxg5
{[%clk 0:00:17.7]} 60... Kb6 {[%clk 0:00:00.6]} 61. g6 {[%clk 0:00:17.6]} 61...
Kc6 {[%clk 0:00:00.5]} 62. g7 {[%clk 0:00:17.3]} 62... Kxd6 {[%clk 0:00:00.2]}
63. g8=Q {[%clk 0:00:17]} 63... Ke5 {[%clk 0:00:00.1]} 64. Qh7 {[%clk
0:00:16.4]} 1-0

[Event "Live Chess"]
[Site "Chess.com"]
[Date "2023.05.20"]
[Round "-"]
[White "ViktorTheCoolBoy"]
[Black "LodeshChess"]
[Result "1-0"]
[WhiteElo "2498"]
[BlackElo "1098"]
[TimeControl "300"]
[EndTime "13:54:01 PDT"]
[Termination "ViktorTheCoolBoy won by resignation"]

1. d4 {[%clk 0:04:58.7]} 1... Nf6 {[%clk 0:04:58.7]} 2. c4 {[%clk 0:04:58]} 2...
e6 {[%clk 0:04:58.1]} 3. Nc3 {[%clk 0:04:55.7]} 3... Bb4 {[%clk 0:04:57.7]} 4.
e3 {[%clk 0:04:54.3]} 4... Bxc3+ {[%clk 0:04:56.7]} 5. bxc3 {[%clk 0:04:53.4]}
5... b6 {[%clk 0:04:52.5]} 6. Bd3 {[%clk 0:04:52.4]} 6... Bb7 {[%clk 0:04:48.9]}
7. f3 {[%clk 0:04:51.8]} 7... d6 {[%clk 0:04:48.2]} 8. Ne2 {[%clk 0:04:50]} 8...
Nbd7 {[%clk 0:04:47.2]} 9. O-O {[%clk 0:04:48.8]} 9... c5 {[%clk 0:04:46.7]} 10.
e4 {[%clk 0:04:47.5]} 10... O-O {[%clk 0:04:41.3]} 11. Be3 {[%clk 0:04:45.6]}
11... Re8 {[%clk 0:04:36.6]} 12. a4 {[%clk 0:04:44]} 12... Qc7 {[%clk 0:04:34]}
13. a5 {[%clk 0:04:42.4]} 13... e5 {[%clk 0:04:27.1]} 14. Qb3 {[%clk 0:04:35.1]}
14... Qb8 {[%clk 0:04:11.9]} 15. Rfb1 {[%clk 0:04:31.6]} 15... Bc8 {[%clk
0:03:38.5]} 16. Ng3 {[%clk 0:04:23.9]} 16... Ba6 {[%clk 0:03:25.1]} 17. Ra3
{[%clk 0:04:18.1]} 17... Nh5 {[%clk 0:03:08.7]} 18. Nxh5 {[%clk 0:04:16.6]}
18... Re6 {[%clk 0:02:58.3]} 19. Ng3 {[%clk 0:04:10.9]} 19... Rg6 {[%clk
0:02:56.8]} 20. Rba1 {[%clk 0:04:08.9]} 20... Bc8 {[%clk 0:02:53]} 21. axb6
{[%clk 0:04:07.8]} 21... Nxb6 {[%clk 0:02:46.2]} 22. dxc5 {[%clk 0:04:06.5]}
22... dxc5 {[%clk 0:02:41.3]} 23. Bxc5 {[%clk 0:04:05.4]} 23... Bd7 {[%clk
0:02:31.2]} 24. Bf2 {[%clk 0:04:03.6]} 24... h6 {[%clk 0:02:24.5]} 25. c5 {[%clk
0:04:02.6]} 25... Nc8 {[%clk 0:02:14.4]} 26. Qxb8 {[%clk 0:04:00.5]} 26... Rxb8
{[%clk 0:02:14]} 27. Nf5 {[%clk 0:03:55.8]} 27... Kf8 {[%clk 0:01:58.7]} 28. Ba6
{[%clk 0:03:49.8]} 28... Rb2 {[%clk 0:01:47.6]} 29. Bxc8 {[%clk 0:03:40]} 29...
Bxc8 {[%clk 0:01:46.6]} 30. R3a2 {[%clk 0:03:37.3]} 30... Rxa2 {[%clk
0:01:37.3]} 31. Rxa2 {[%clk 0:03:35.3]} 31... Bxf5 {[%clk 0:01:30.7]} 32. exf5
{[%clk 0:03:33.9]} 32... Rf6 {[%clk 0:01:30.2]} 33. g4 {[%clk 0:03:31.6]} 33...
Rc6 {[%clk 0:01:28.3]} 34. Rxa7 {[%clk 0:03:29.3]} 34... f6 {[%clk 0:01:22.9]}
35. Kf1 {[%clk 0:03:25.7]} 35... Ke8 {[%clk 0:01:21.2]} 36. Ke2 {[%clk
0:03:24.6]} 36... Kf8 {[%clk 0:01:20.3]} 37. Kd3 {[%clk 0:03:23.7]} 37... Rc8
{[%clk 0:01:18.6]} 38. Kc4 {[%clk 0:03:22.6]} 38... Rb8 {[%clk 0:01:16]} 39. c6
{[%clk 0:03:21]} 39... Rc8 {[%clk 0:01:09.6]} 40. Kd5 {[%clk 0:03:14.3]} 40...
Rd8+ {[%clk 0:01:02.2]} 41. Rd7 {[%clk 0:03:12.6]} 1-0

[Event "Live Chess"]
[Site "Chess.com"]
[Date "2023.05.20"]
[Round "-"]
[White "ameetghasi100"]
[Black "MaximKris"]
[Result "1-0"]
[WhiteElo "2687"]
[BlackElo "1856"]
[TimeControl "300"]
[EndTime "13:54:01 PDT"]
[Termination "ameetghasi100 won by checkmate"]

1. d4 {[%clk 0:04:58.6]} 1... d5 {[%clk 0:04:58.6]} 2. c4 {[%clk 0:04:56.3]}
2... e6 {[%clk 0:04:57]} 3. Nc3 {[%clk 0:04:56.2]} 3... Nf6 {[%clk 0:04:55.7]}
4. Nf3 {[%clk 0:04:56.1]} 4... Bb4 {[%clk 0:04:53.6]} 5. Bg5 {[%clk 0:04:55.4]}
5... Bxc3+ {[%clk 0:04:52.1]} 6. bxc3 {[%clk 0:04:55.3]} 6... h6 {[%clk
0:04:51.3]} 7. Bxf6 {[%clk 0:04:53.8]} 7... Qxf6 {[%clk 0:04:50.8]} 8. e3 {[%clk
0:04:53.7]} 8... dxc4 {[%clk 0:04:49.7]} 9. Bxc4 {[%clk 0:04:52]} 9... Nc6
{[%clk 0:04:49.6]} 10. O-O {[%clk 0:04:51]} 10... O-O {[%clk 0:04:49]} 11. a4
{[%clk 0:04:48.8]} 11... Bd7 {[%clk 0:04:48.4]} 12. Bb5 {[%clk 0:04:47.8]} 12...
a6 {[%clk 0:04:47.3]} 13. Bxc6 {[%clk 0:04:46.9]} 13... Bxc6 {[%clk 0:04:47.2]}
14. Ne5 {[%clk 0:04:45.9]} 14... Rfe8 {[%clk 0:04:44.3]} 15. Rb1 {[%clk
0:04:43.1]} 15... Rad8 {[%clk 0:04:37.6]} 16. Qe2 {[%clk 0:04:36.8]} 16... Be4
{[%clk 0:04:34.9]} 17. Rb2 {[%clk 0:04:34.6]} 17... c5 {[%clk 0:04:32.2]} 18. f3
{[%clk 0:04:33.5]} 18... cxd4 {[%clk 0:04:29.5]} 19. cxd4 {[%clk 0:04:31]} 19...
Bc6 {[%clk 0:04:27.4]} 20. Rfb1 {[%clk 0:04:29.7]} 20... Qe7 {[%clk 0:04:24.9]}
21. a5 {[%clk 0:04:27.5]} 21... f6 {[%clk 0:04:23.7]} 22. Nxc6 {[%clk
0:04:21.1]} 22... bxc6 {[%clk 0:04:23.6]} 23. Rb7 {[%clk 0:04:18.4]} 23... Qa3
{[%clk 0:04:21.9]} 24. Rc7 {[%clk 0:04:07.9]} 24... Qxa5 {[%clk 0:04:19.4]} 25.
Rbb7 {[%clk 0:04:06.3]} 25... Qg5 {[%clk 0:04:09.4]} 26. h4 {[%clk 0:04:01.7]}
26... Qg6 {[%clk 0:04:07.9]} 27. h5 {[%clk 0:03:30.4]} 27... Qg5 {[%clk
0:04:03.8]} 28. Qd3 {[%clk 0:02:58]} 28... Rb8 {[%clk 0:03:56.7]} 29. Rxg7+
{[%clk 0:02:56]} 29... Qxg7 {[%clk 0:03:56.6]} 30. Rxg7+ {[%clk 0:02:55]} 30...
Kxg7 {[%clk 0:03:56.5]} 31. Qg6+ {[%clk 0:02:54.3]} 31... Kh8 {[%clk 0:03:55.9]}
32. Qxf6+ {[%clk 0:02:53.7]} 32... Kg8 {[%clk 0:03:55.8]} 33. Qg6+ {[%clk
0:02:53.1]} 33... Kf8 {[%clk 0:03:55.7]} 34. Qxh6+ {[%clk 0:02:50.3]} 34... Ke7
{[%clk 0:03:55.6]} 35. Qg7+ {[%clk 0:02:49.5]} 35... Kd6 {[%clk 0:03:54.2]} 36.
h6 {[%clk 0:02:48.9]} 36... Rg8 {[%clk 0:03:51.7]} 37. Qe5+ {[%clk 0:02:47.4]}
37... Kd7 {[%clk 0:03:50.8]} 38. h7 {[%clk 0:02:47.3]} 38... Rh8 {[%clk
0:03:48.6]} 39. Qg7+ {[%clk 0:02:44.6]} 39... Kd6 {[%clk 0:03:47.6]} 40. g4
{[%clk 0:02:42.2]} 40... Rb1+ {[%clk 0:03:44.7]} 41. Kg2 {[%clk 0:02:40.9]}
41... Rbb8 {[%clk 0:03:44.6]} 42. Kg3 {[%clk 0:02:39.5]} 42... Rbf8 {[%clk
0:03:42.6]} 43. g5 {[%clk 0:02:37.8]} 43... Ra8 {[%clk 0:03:40.1]} 44. g6 {[%clk
0:02:36.2]} 44... Raf8 {[%clk 0:03:40]} 45. Qe5+ {[%clk 0:02:34.7]} 45... Kd7
{[%clk 0:03:38.3]} 46. g7 {[%clk 0:02:34.6]} 46... Rf7 {[%clk 0:03:37.5]} 47.
gxh8=Q {[%clk 0:02:32.5]} 47... Rxh7 {[%clk 0:03:37.4]} 48. Qxh7+ {[%clk
0:02:31.5]} 48... Kc8 {[%clk 0:03:37.3]} 49. Qec7# {[%clk 0:02:30.2]} 1-0

[Event "Live Chess"]
[Site "Chess.com"]
[Date "2023.05.20"]
[Round "-"]
[White "SupremeTactician"]
[Black "Duke_of_Bebington"]
[Result "1-0"]
[WhiteElo "2377"]
[BlackElo "1586"]
[TimeControl "300"]
[EndTime "13:54:01 PDT"]
[Termination "SupremeTactician won by resignation"]

1. e4 {[%clk 0:04:58.2]} 1... e5 {[%clk 0:04:59.1]} 2. Nf3 {[%clk 0:04:56.6]}
2... Nf6 {[%clk 0:04:56.7]} 3. Nc3 {[%clk 0:04:56.1]} 3... Nc6 {[%clk
0:04:55.1]} 4. Bb5 {[%clk 0:04:55.7]} 4... Nd4 {[%clk 0:04:53.2]} 5. Nxe5 {[%clk
0:04:53.5]} 5... Nxb5 {[%clk 0:04:40.1]} 6. Nxb5 {[%clk 0:04:51.7]} 6... d6
{[%clk 0:04:31.8]} 7. Nf3 {[%clk 0:04:47.2]} 7... Nxe4 {[%clk 0:04:23.2]} 8. Qe2
{[%clk 0:04:44.7]} 8... Qe7 {[%clk 0:04:18.3]} 9. d3 {[%clk 0:04:44]} 9... Nf6
{[%clk 0:04:16.6]} 10. Nxc7+ {[%clk 0:04:43]} 10... Kd8 {[%clk 0:04:11.7]} 11.
Qxe7+ {[%clk 0:04:42.9]} 11... Bxe7 {[%clk 0:04:10.3]} 12. Nxa8 {[%clk
0:04:42.8]} 12... Bg4 {[%clk 0:04:05.6]} 13. Be3 {[%clk 0:04:29.5]} 13... Kd7
{[%clk 0:04:01.7]} 14. Nb6+ {[%clk 0:04:23.8]} 14... axb6 {[%clk 0:03:59.4]} 15.
Bxb6 {[%clk 0:04:23.7]} 15... Re8 {[%clk 0:03:52.8]} 16. O-O {[%clk 0:04:21.9]}
16... Bxf3 {[%clk 0:03:51]} 17. gxf3 {[%clk 0:04:21.8]} 17... Nh5 {[%clk
0:03:49.6]} 18. a4 {[%clk 0:04:17.9]} 18... Bf6 {[%clk 0:03:47.3]} 19. c3 {[%clk
0:04:15.2]} 19... Nf4 {[%clk 0:03:45.9]} 20. Rfd1 {[%clk 0:04:10.1]} 20... Re5
{[%clk 0:03:40.1]} 21. a5 {[%clk 0:03:55.8]} 21... Rg5+ {[%clk 0:03:37.9]} 22.
Kf1 {[%clk 0:03:54.5]} 22... Rg2 {[%clk 0:03:33.6]} 23. Be3 {[%clk 0:03:50.5]}
23... Rxh2 {[%clk 0:03:26.4]} 24. Bxf4 {[%clk 0:03:48.8]} 24... Rh1+ {[%clk
0:03:25.7]} 25. Ke2 {[%clk 0:03:48.3]} 1-0

[Event "Live Chess"]
[Site "Chess.com"]
[Date "2023.05.20"]
[Round "-"]
[White "siddu198"]
[Black "Missedidea"]
[Result "1-0"]
[WhiteElo "1642"]
[BlackElo "1757"]
[TimeControl "300"]
[EndTime "13:54:02 PDT"]
[Termination "siddu198 won on time"]

1. e4 {[%clk 0:04:57]} 1... c5 {[%clk 0:04:58.1]} 2. c3 {[%clk 0:04:55.1]} 2...
Nf6 {[%clk 0:04:55.7]} 3. e5 {[%clk 0:04:53.2]} 3... Nd5 {[%clk 0:04:54.8]} 4.
d4 {[%clk 0:04:52.5]} 4... cxd4 {[%clk 0:04:53.6]} 5. cxd4 {[%clk 0:04:52.1]}
5... Nc6 {[%clk 0:04:48.2]} 6. Bc4 {[%clk 0:04:51.1]} 6... Nb6 {[%clk
0:04:46.1]} 7. b3 {[%clk 0:04:45]} 7... d6 {[%clk 0:04:40.2]} 8. Qf3 {[%clk
0:04:30.8]} 8... e6 {[%clk 0:04:29]} 9. d5 {[%clk 0:04:19.6]} 9... Nxe5 {[%clk
0:04:26.8]} 10. Bb5+ {[%clk 0:04:11.3]} 10... Bd7 {[%clk 0:04:17.4]} 11. Bxd7+
{[%clk 0:04:10.2]} 11... Qxd7 {[%clk 0:04:13.4]} 12. Qd1 {[%clk 0:04:07.4]}
12... Nxd5 {[%clk 0:04:10]} 13. Nf3 {[%clk 0:04:06.7]} 13... Nc6 {[%clk
0:04:02.6]} 14. O-O {[%clk 0:04:04.5]} 14... Be7 {[%clk 0:04:00.9]} 15. Re1
{[%clk 0:04:04.4]} 15... O-O {[%clk 0:03:58.3]} 16. Bg5 {[%clk 0:04:01.9]} 16...
Bxg5 {[%clk 0:03:50.3]} 17. Nxg5 {[%clk 0:04:01.8]} 17... h6 {[%clk 0:03:45.1]}
18. Nf3 {[%clk 0:03:59.6]} 18... Rae8 {[%clk 0:03:27.6]} 19. Nbd2 {[%clk
0:03:56.6]} 19... f5 {[%clk 0:03:23.3]} 20. Nc4 {[%clk 0:03:51.6]} 20... b5
{[%clk 0:03:18.3]} 21. Ne3 {[%clk 0:03:45.2]} 21... Nf4 {[%clk 0:03:07.3]} 22.
Rc1 {[%clk 0:03:35.1]} 22... g5 {[%clk 0:02:47.7]} 23. h3 {[%clk 0:03:25.2]}
23... e5 {[%clk 0:02:22.5]} 24. g3 {[%clk 0:02:44.6]} 24... Nxh3+ {[%clk
0:02:14.7]} 25. Kg2 {[%clk 0:02:41.7]} 25... g4 {[%clk 0:02:02.5]} 26. Nh4
{[%clk 0:02:18.9]} 26... Ne7 {[%clk 0:01:52.1]} 27. Nc2 {[%clk 0:01:55.2]} 27...
Ng5 {[%clk 0:01:47.5]} 28. Nb4 {[%clk 0:01:54.1]} 28... f4 {[%clk 0:01:39.5]}
29. Rxe5 {[%clk 0:01:48.6]} 29... f3+ {[%clk 0:01:24.9]} 30. Kh2 {[%clk
0:01:40.5]} 30... Nf5 {[%clk 0:01:01.4]} 31. Rxe8 {[%clk 0:01:24.2]} 31... Qxe8
{[%clk 0:00:56]} 32. Qd5+ {[%clk 0:01:21.5]} 32... Qe6 {[%clk 0:00:47.3]} 33.
Nxf5 {[%clk 0:01:15.5]} 33... Qxd5 {[%clk 0:00:42.6]} 34. Nxd5 {[%clk
0:01:15.2]} 34... Rxf5 {[%clk 0:00:39.2]} 35. Ne7+ {[%clk 0:01:14.8]} 35... Kf7
{[%clk 0:00:36.5]} 36. Nxf5 {[%clk 0:01:14.4]} 36... h5 {[%clk 0:00:32.9]} 37.
Nxd6+ {[%clk 0:01:11.8]} 37... Ke6 {[%clk 0:00:31.6]} 38. Nxb5 {[%clk
0:01:11.1]} 38... Ne4 {[%clk 0:00:28.5]} 39. Re1 {[%clk 0:01:09.1]} 39... Kd5
{[%clk 0:00:25]} 40. Nc7+ {[%clk 0:01:08.2]} 40... Kd4 {[%clk 0:00:22.2]} 41.
Ne6+ {[%clk 0:01:02.7]} 41... Kd3 {[%clk 0:00:18.8]} 42. Nf4+ {[%clk 0:01:01.7]}
42... Kd4 {[%clk 0:00:17.4]} 43. Nxh5 {[%clk 0:00:55.8]} 43... Nxf2 {[%clk
0:00:16]} 44. Nf6 {[%clk 0:00:55.4]} 44... Nd3 {[%clk 0:00:13.1]} 45. Rd1 {[%clk
0:00:52.9]} 45... f2 {[%clk 0:00:05.7]} 46. Nxg4 {[%clk 0:00:49.1]} 46... Kc3
{[%clk 0:00:02.6]} 47. Rxd3+ {[%clk 0:00:43.6]} 1-0

[Event "Live Chess"]
[Site "Chess.com"]
[Date "2023.05.20"]
[Round "-"]
[White "trekker123"]
[Black "raminguy"]
[Result "1-0"]
[WhiteElo "2095"]
[BlackElo "1959"]
[TimeControl "300"]
[EndTime "13:54:12 PDT"]
[Termination "trekker123 won by resignation"]

1. d4 {[%clk 0:04:57.6]} 1... d5 {[%clk 0:04:59.1]} 2. Nf3 {[%clk 0:04:55.6]}
2... Nf6 {[%clk 0:04:58.2]} 3. c4 {[%clk 0:04:53.4]} 3... e6 {[%clk 0:04:57.6]}
4. g3 {[%clk 0:04:51.5]} 4... Be7 {[%clk 0:04:56.2]} 5. Bg2 {[%clk 0:04:49.9]}
5... O-O {[%clk 0:04:55.4]} 6. Qc2 {[%clk 0:04:48.1]} 6... a6 {[%clk 0:04:54.5]}
7. Nbd2 {[%clk 0:04:45.2]} 7... c6 {[%clk 0:04:50.1]} 8. O-O {[%clk 0:04:43.7]}
8... Nbd7 {[%clk 0:04:48.2]} 9. b3 {[%clk 0:04:42.1]} 9... Re8 {[%clk
0:04:46.7]} 10. Bb2 {[%clk 0:04:41]} 10... Nf8 {[%clk 0:04:45.2]} 11. e4 {[%clk
0:04:38.2]} 11... dxe4 {[%clk 0:04:43.6]} 12. Nxe4 {[%clk 0:04:38.1]} 12... Nxe4
{[%clk 0:04:42.4]} 13. Qxe4 {[%clk 0:04:38]} 13... Nd7 {[%clk 0:04:35.7]} 14.
Rad1 {[%clk 0:04:29.7]} 14... Nf6 {[%clk 0:04:34.5]} 15. Qe2 {[%clk 0:04:27.6]}
15... Qc7 {[%clk 0:04:32.6]} 16. Ne5 {[%clk 0:04:25.1]} 16... a5 {[%clk
0:04:22.6]} 17. a3 {[%clk 0:04:17]} 17... a4 {[%clk 0:04:20.6]} 18. b4 {[%clk
0:04:15.5]} 18... Ra6 {[%clk 0:04:07.5]} 19. h4 {[%clk 0:04:05.9]} 19... Rb6
{[%clk 0:03:19.4]} 20. h5 {[%clk 0:03:48.4]} 20... h6 {[%clk 0:02:46.8]} 21.
Rfe1 {[%clk 0:03:41.5]} 21... Ra6 {[%clk 0:02:37.1]} 22. Bf3 {[%clk 0:03:21.2]}
22... Ra8 {[%clk 0:02:27.4]} 23. Bc1 {[%clk 0:03:02.9]} 23... b5 {[%clk
0:02:19.2]} 24. Bxc6 {[%clk 0:02:57.1]} 24... Bb7 {[%clk 0:02:01.4]} 25. cxb5
{[%clk 0:02:49.3]} 25... Rf8 {[%clk 0:01:53.8]} 26. Bf4 {[%clk 0:02:45.7]} 26...
Qb6 {[%clk 0:01:51.3]} 27. Qf3 {[%clk 0:02:28.1]} 27... Nd5 {[%clk 0:01:49.5]}
28. Bxb7 {[%clk 0:02:20.7]} 28... Qxb7 {[%clk 0:01:47.7]} 29. Nc6 {[%clk
0:02:11.8]} 29... Qxb5 {[%clk 0:01:40.1]} 30. Nxe7+ {[%clk 0:02:04.2]} 30...
Nxe7 {[%clk 0:01:39.7]} 31. Bd6 {[%clk 0:01:55.2]} 31... Rfe8 {[%clk 0:01:31.4]}
1-0